fUST/lending_fUST_20240908
["ID","MTS","AMOUNT","RATE_DAILY","PERIOD"]
[337535867,1725778244815,-1000.0,0.00022,2]
[337535868,1725778244824,-1000.0,0.00022,2]
[337535869,1725778244833,-1000.0,0.00022,2]
[337535870,1725778244843,-1000.0,0.00022,2]
[337535871,1725778244852,-1000.0,0.00022,2]
[337535872,1725778244861,-1000.0,0.00022,2]
[337535873,1725778244870,-1000.0,0.00022,2]
[337535874,1725778244880,-1000.0,0.00022,2]
[337535875,1725778244889,-1000.0,0.00022,2]
[337535876,1725778244898,-1000.0,0.00022,2]
[337535877,1725778244908,-1000.0,0.00022,2]
[337535878,1725778244917,-1000.0,0.00022,2]
[337535879,1725778244926,-1000.0,0.00022,2]
[337535880,1725778244936,-1000.0,0.00022,2]
[337535881,1725778244945,-1000.0,0.00022,2]
[337535882,1725778244957,-1000.0,0.00022,2]
[337535883,1725778244967,-1000.0,0.00022,2]
[337535884,1725778244977,-1000.0,0.00022,2]
[337535885,1725778244990,-1000.0,0.00022,2]
[337535886,1725778245000,-1000.0,0.00022,2]
[337535887,1725778245011,-1000.0,0.00022,2]
[337535888,1725778245022,-1000.0,0.00022,2]
[337535889,1725778245031,-1000.0,0.00022,2]
[337535890,1725778245040,-1000.0,0.00022,2]
[337535891,1725778245050,-1000.0,0.00022,2]
[337535892,1725778245059,-1000.0,0.00022,2]
[337535893,1725778245069,-963.704457,0.00022,2]
[337535894,1725778245079,-467.092346,0.00022,7]
[337535895,1725778245088,-1511.596615,0.00022,7]
[337535896,1725778245097,-1511.596615,0.00022,7]
[337535897,1725778245107,-467.092346,0.00022,7]
[337535898,1725778245116,-159.12382645,0.00022,2]
[337535899,1725778245125,-282.000295,0.00022,7]
[337535900,1725778245136,-151.0,0.00022,7]
[337535901,1725778245147,-151.0,0.00022,7]
[337535902,1725778245157,-1493.105719,0.00022,7]
[337535903,1725778245167,-1493.105719,0.00022,7]
[337535904,1725778245176,-224.288504,0.00022,7]
[337535905,1725778245185,-224.288504,0.00022,7]
[337535906,1725778245195,-151.0,0.00022,7]
[337535907,1725778245205,-151.0,0.00022,7]
[337535908,1725778245214,-151.0,0.00022,7]
[337535909,1725778245224,-151.0,0.00022,7]
[337535910,1725778245234,-151.0,0.00022,7]
[337535911,1725778245353,-500.352159,0.00022,7]
[337535912,1725778245364,-500.352159,0.00022,7]
[337535913,1725778245377,-420.0,0.00022079,2]
[337535914,1725778245387,-1317.04540614,0.000223,2]
[337535915,1725778245396,-250.0,0.00022521,2]
[337535916,1725778245406,-1000.0,0.000226,2]
[337535917,1725778245417,-465.00856111,0.00022843,2]
[337535918,1725778245428,-240.10299113,0.00023,2]
[337535919,1725778245437,-356.0,0.00023,2]
[337535920,1725778245448,-200.0,0.00023,2]
[337535921,1725778245457,-151.0,0.0002305,7]
[337535922,1725778245467,-172.780982,0.0002305,7]
[337535923,1725778245476,-411.41383005,0.00023068,2]
[337535924,1725778245486,-356.0,0.00023288,2]
[337535925,1725778245496,-151.0,0.00023342,7]
[337535926,1725778245505,-151.0,0.00023342,7]
[337535927,1725778245514,-249.94,0.00023655,2]
[337535928,1725778245524,-416.3216336,0.00023973,2]
[337535929,1725778245537,-465.00042806,0.00023985,2]
[337535930,1725778245548,-500.0,0.00024,2]
[337535931,1725778245557,-1000.0,0.00024,24]
[337535932,1725778245567,-153.0,0.00024036,2]
[337535933,1725778245577,-416.3216336,0.0002411,2]
[337535934,1725778245586,-208.1608168,0.0002411,2]
[337535935,1725778245595,-356.0,0.00024164,2]
[337535936,1725778245604,-1500.0,0.00024247,2]
[337535937,1725778245614,-1500.0,0.00024247,2]
[337535938,1725778245625,-587.0,0.00024287,2]
[337535939,1725778245636,-155.624909,0.000243,3]
[337535940,1725778245646,-306.0,0.00024329,2]
[337535941,1725778245657,-1273.87581624,0.0002448,2]
[337535942,1725778245667,-251.72960141,0.00024519,2]
[337535943,1725778245676,-151.0,0.00024519,7]
[337535944,1725778245685,-162.942925,0.00024519,7]
[337535945,1725778245694,-151.0,0.00024519,7]
[337535946,1725778245703,-151.0,0.00024519,7]
[337535947,1725778245712,-152.399767,0.00024519,7]
[337535948,1725778245721,-500.352159,0.00024519,7]
[337535949,1725778245730,-500.352159,0.00024519,7]
[337535950,1725778245747,-1030.95456421,0.0002465,7]
[337535951,1725778245757,-380.0,0.00024658,2]
[337535952,1725778245766,-200.0,0.00024658,2]
[337535953,1725778245775,-218.9654,0.00024658,7]
[337535954,1725778245784,-151.0,0.00024658,7]
[337535955,1725778245798,-218.9654,0.00024658,7]
[337535956,1725778245808,-151.0,0.00024658,7]
[337535957,1725778245817,-151.0,0.00024658,7]
[337535958,1725778245826,-1000.0,0.00024658,7]
[337535959,1725778245836,-151.0,0.00024658,7]
[337535960,1725778245845,-171.854162,0.00024658,7]
[337535961,1725778245854,-171.854162,0.00024658,7]
[337535962,1725778245864,-203.47224,0.00024658,7]
[337535963,1725778245873,-203.47224,0.00024658,7]
[337535964,1725778245883,-1776.49751,0.00024658,7]
[337535965,1725778245892,-1776.49751,0.00024658,7]
[337535966,1725778245902,-151.989284,0.00024658,7]
[337535967,1725778245913,-151.989284,0.00024658,7]
[337535968,1725778245923,-151.0,0.00024658,7]
[337535969,1725778245933,-1511.596615,0.00024658,7]
[337535970,1725778245942,-1511.596615,0.00024658,7]
[337535971,1725778245951,-430.1513394,0.0002474,2]
[337535972,1725778245961,-151.0,0.0002474,7]
[337535973,1725778245970,-152.963601,0.0002474,7]
[337535974,1725778245979,-151.0,0.0002474,7]
[337535975,1725778245989,-276.213511,0.0002474,7]
[337535976,1725778245998,-218.9654,0.0002474,7]
[337535977,1725778246007,-151.0,0.0002474,7]
[337535978,1725778246016,-218.9654,0.0002474,7]
[337535979,1725778246026,-151.0,0.0002474,7]
[337535980,1725778246035,-151.0,0.0002474,7]
[337535981,1725778246043,-151.0,0.0002474,7]
[337535982,1725778246054,-666.377091,0.0002474,7]
[337535983,1725778246063,-666.377091,0.0002474,7]
[337535984,1725778246073,-218.507098,0.0002474,7]
[337535985,1725778246082,-218.507098,0.0002474,7]
[337535986,1725778246092,-2304.992342,0.0002474,7]
[337535987,1725778246101,-2304.992342,0.0002474,7]
[337535988,1725778246110,-151.0,0.0002474,7]
[337535989,1725778246120,-151.0,0.0002474,7]
[337535990,1725778246129,-153.579099,0.0002474,7]
[337535991,1725778246138,-151.0,0.0002474,7]
[337535992,1725778246147,-1621.853427,0.0002474,7]
[337535993,1725778246156,-1621.853427,0.0002474,7]
[337535994,1725778246166,-317.947379,0.0002474,7]
[337535995,1725778246175,-317.947379,0.0002474,7]
[337535996,1725778246184,-152573.86286341,0.0002475,2]
[337535997,1725778246471,-474.58560368,0.0002475,2]
[337535998,1725778246490,-43952.86191994,0.0002475,2]
[337535999,1725778247576,-632.08,0.00020164,3]
[337536000,1725778247586,-421.826999,0.00020184,2]
[337536001,1725778247596,-421.826999,0.00020184,2]
[337536002,1725778247605,-371.358108,0.00020359,2]
[337536003,1725778247614,-347.01214774,0.00020359,2]
[337536004,1725778345538,-300.0,0.00020171,2]
[337536005,1725778345569,-500.0,0.00020172,2]
[337536006,1725778345596,-370.68707273,0.00020172,2]
[337536007,1725778345626,-500.0,0.00020172,2]
[337536008,1725778345655,-457.72527562,0.00020172,2]
[337536009,1725778345687,-549.87347194,0.00020172,2]
[337536010,1725778345718,-549.87347194,0.00020172,2]
[337536011,1725778345748,-549.87347194,0.00020172,2]
[337536012,1725778345778,-549.87347194,0.00020172,2]
[337536013,1725778345807,-549.87347194,0.00020172,2]
[337536014,1725778345840,-549.87347194,0.00020172,2]
[337536015,1725778345869,-549.87347194,0.00020172,2]
[337536016,1725778345897,-549.87347194,0.00020172,2]
[337536017,1725778345929,-549.87347194,0.00020172,2]
[337536018,1725778345960,-549.87347194,0.00020172,2]
[337536019,1725778345991,-549.87347194,0.00020172,2]
[337536020,1725778346023,-549.87347194,0.00020172,2]
[337536021,1725778346054,-549.87347194,0.00020172,2]
[337536022,1725778346095,-549.87347194,0.00020172,2]
[337536023,1725778346128,-549.87347194,0.00020172,2]
[337536024,1725778346157,-549.87347194,0.00020172,2]
[337536025,1725778346188,-549.87347194,0.00020172,2]
[337536026,1725778346218,-549.87347194,0.00020172,2]
[337536027,1725778346250,-549.87347194,0.00020172,2]
[337536028,1725778346282,-549.87347194,0.00020172,2]
[337536029,1725778346323,-549.87347194,0.00020172,2]
[337536030,1725778346359,-549.87347194,0.00020172,2]
[337536031,1725778346394,-549.87347194,0.00020172,2]
[337536032,1725778346429,-549.87347194,0.00020172,2]
[337536033,1725778346464,-549.87347194,0.00020172,2]
[337536034,1725778346496,-549.87347194,0.00020172,2]
[337536035,1725778346532,-549.87347194,0.00020172,2]
[337536036,1725778346565,-549.87347194,0.00020172,2]
[337536037,1725778346599,-549.87347194,0.00020172,2]
[337536038,1725778346634,-549.87347194,0.00020172,2]
[337536039,1725778346666,-549.87347194,0.00020172,2]
[337536040,1725778346703,-549.87347194,0.00020172,2]
[337536041,1725778346736,-549.87347194,0.00020172,2]
[337536042,1725778346769,-549.87347194,0.00020172,2]
[337536043,1725778346801,-549.87347194,0.00020172,2]
[337536044,1725778346830,-549.87347194,0.00020172,2]
[337536045,1725778346861,-549.87347194,0.00020172,2]
[337536046,1725778346893,-549.87347194,0.00020172,2]
[337536047,1725778346925,-549.87347194,0.00020172,2]
[337536048,1725778346958,-549.87347194,0.00020172,2]
[337536049,1725778346989,-549.87347194,0.00020172,2]
[337536050,1725778347020,-549.87347194,0.00020172,2]
[337536051,1725778347054,-549.87347194,0.00020172,2]
[337536052,1725778347088,-549.87347194,0.00020172,2]
[337536053,1725778347124,-549.87347194,0.00020172,2]
[337536054,1725778347157,-549.87347194,0.00020172,2]
[337536055,1725778347189,-549.87347194,0.00020172,2]
[337536056,1725778347223,-549.87347194,0.00020172,2]
[337536057,1725778347255,-549.87347194,0.00020172,2]
[337536058,1725778347286,-549.87347194,0.00020172,2]
[337536059,1725778347316,-549.87347194,0.00020172,2]
[337536060,1725778347347,-549.87347194,0.00020172,2]
[337536061,1725778347378,-540.44706957,0.00020172,2]
[337536062,1725778347409,-540.44706957,0.00020172,2]
[337536063,1725778347441,-540.44706957,0.00020172,2]
[337536064,1725778347474,-540.44706957,0.00020172,2]
[337536065,1725778347503,-540.44706957,0.00020172,2]
[337536066,1725778347533,-540.44706957,0.00020172,2]
[337536067,1725778347565,-540.44706957,0.00020172,2]
[337536068,1725778347594,-540.44706957,0.00020172,2]
[337536069,1725778347625,-540.44706957,0.00020172,2]
[337536070,1725778347655,-540.44706957,0.00020172,2]
[337536071,1725778347686,-540.44706957,0.00020172,2]
[337536072,1725778347720,-540.44706957,0.00020172,2]
[337536073,1725778347751,-540.44706957,0.00020172,2]
[337536074,1725778347783,-540.44706957,0.00020172,2]
[337536075,1725778347814,-540.44706957,0.00020172,2]
[337536076,1725778347844,-540.44706957,0.00020172,2]
[337536077,1725778347873,-540.44706957,0.00020172,2]
[337536078,1725778347903,-540.44706957,0.00020172,2]
[337536079,1725778348085,-540.44706957,0.00020172,2]
[337536080,1725778348113,-540.44706957,0.00020172,2]
[337536081,1725778348143,-540.44706957,0.00020172,2]
[337536082,1725778348170,-540.44706957,0.00020172,2]
[337536083,1725778348199,-540.44706957,0.00020172,2]
[337536084,1725778348227,-540.44706957,0.00020172,2]
[337536085,1725778348256,-540.44706957,0.00020172,2]
[337536086,1725778348284,-540.44706957,0.00020172,2]
[337536087,1725778348313,-540.44706957,0.00020172,2]
[337536088,1725778348342,-540.44706957,0.00020172,2]
[337536089,1725778348371,-540.44706957,0.00020172,2]
[337536090,1725778348403,-540.4470696,0.00020172,2]
[337536091,1725778348433,-540.4470696,0.00020172,2]
[337536092,1725778348462,-540.4470696,0.00020172,2]
[337536093,1725778348492,-540.4470696,0.00020172,2]
[337536094,1725778348521,-540.4470696,0.00020172,2]
[337536095,1725778348547,-500.0,0.00020172,2]
[337536096,1725778419778,491.13195362,0.00038808,120]
[337536097,1725778429451,1987.07302289,0.00020001,2]
[337536098,1725778432489,-300.0,0.00020183,2]
[337536099,1725778432521,-266.550836,0.00020184,2]
[337536100,1725778432551,-266.550836,0.00020184,2]
[337536101,1725778432581,-151.0,0.00020184,2]
[337536102,1725778432612,-241.723204,0.00020184,2]
[337536103,1725778432643,-151.0,0.00020184,2]
[337536104,1725778432673,-648.741371,0.00020184,2]
[337536105,1725778432704,-648.741371,0.00020184,2]
[337536106,1725778432736,-151.0,0.00020184,2]
[337536107,1725778432767,-151.0,0.00020184,2]
[337536108,1725778440708,155.0,0.000202,2]
[337536109,1725778445647,155.0,0.000202,2]
[337536110,1725778450217,155.0,0.000202,2]
[337536111,1725778454151,186.34574222,0.0002,2]
[337536112,1725778454815,155.0,0.000202,2]
[337536113,1725778459616,155.0,0.000202,2]
[337536114,1725778464235,155.84775586,0.000202,2]
[337536117,1725778486659,-300.0,0.00020358,2]
[337536118,1725778486690,-371.358108,0.00020359,2]
[337536119,1725778486721,-266.550836,0.00020359,2]
[337536120,1725778486752,-266.550836,0.00020359,2]
[337536121,1725778486782,-151.0,0.00020359,2]
[337536122,1725778486811,-151.0,0.00020359,2]
[337536123,1725778486843,-648.741371,0.00020359,2]
[337536124,1725778486875,-648.741371,0.00020359,2]
[337536125,1725778486905,-151.0,0.00020359,2]
[337536126,1725778486936,-151.0,0.00020359,2]
[337536127,1725778507065,-300.0,0.00020718,2]
[337536128,1725778507112,-371.358108,0.00020719,2]
[337536129,1725778507148,-371.358108,0.00020719,2]
[337536130,1725778507189,-266.550836,0.00020719,2]
[337536131,1725778507218,-266.550836,0.00020719,2]
[337536132,1725778507246,-151.0,0.00020719,2]
[337536133,1725778507279,-151.0,0.00020719,2]
[337536134,1725778507326,-648.741371,0.00020719,2]
[337536135,1725778507356,-648.741371,0.00020719,2]
[337536136,1725778507406,-151.0,0.00020719,2]
[337536137,1725778507437,-151.0,0.00020719,2]
[337536144,1725778720790,4448.261203,0.00020868,2]
[337536145,1725778728903,250.0,0.00020868,2]
[337536146,1725778735790,165.317325,0.00019824,2]
[337536148,1725778819842,1000.0,0.00028,120]
[337536151,1725778882665,240.7924992,0.000208,2]
[337536152,1725778921465,500.0,0.00038835,30]
[337536153,1725778928275,500.0,0.00038835,30]
[337536154,1725778931782,190.21038,0.00020526,2]
[337536155,1725778933660,500.0,0.00038835,30]
[337536156,1725778938245,500.0,0.00038835,30]
[337536157,1725779002392,500.0,0.00038835,30]
[337536158,1725779062984,1417.6186143,0.00020877,2]
[337536159,1725779065452,24900.0,0.00020877,2]
[337536160,1725779090926,2118.0,0.00038835,30]
[337536161,1725779106233,500.0,0.00038835,30]
[337536162,1725779112877,500.0,0.00038835,30]
[337536189,1725779438193,-162.489911,0.00021049,2]
[337536190,1725779438203,-162.489911,0.00021597,2]
[337536191,1725779438212,-168.34332268,0.00021817,2]
[337536192,1725779438223,-300.0,0.00021817,2]
[337536193,1725779438234,-500.0,0.00021917,2]
[337536194,1725779438243,-500.0,0.00021917,2]
[337536195,1725779438254,-595.77252756,0.00021917,2]
[337536196,1725779438264,-500.0,0.00021917,2]
[337536197,1725779438273,-500.0,0.00021917,2]
[337536198,1725779438282,-500.0,0.00021917,2]
[337536199,1725779438292,-500.0,0.00021917,2]
[337536200,1725779438302,-500.0,0.00021917,2]
[337536201,1725779438312,-500.0,0.00021917,2]
[337536202,1725779438321,-500.0,0.00021917,2]
[337536204,1725779438330,-500.0,0.00021917,2]
[337536206,1725779438339,-650.0,0.00021917,2]
[337536208,1725779438349,-500.0,0.00021917,2]
[337536210,1725779438358,-500.0,0.00021917,2]
[337536211,1725779438367,-500.0,0.00021917,2]
[337536212,1725779438376,-500.0,0.00021917,2]
[337536213,1725779438385,-500.0,0.00021917,2]
[337536214,1725779438395,-500.0,0.00021917,2]
[337536215,1725779438404,-500.0,0.00021917,2]
[337536216,1725779438413,-500.0,0.00021917,2]
[337536217,1725779438422,-500.0,0.00021918,2]
[337536218,1725779438432,-500.0,0.00021918,2]
[337536219,1725779438442,-500.0,0.00021918,2]
[337536220,1725779438451,-500.0,0.00021918,2]
[337536221,1725779438462,-500.0,0.00021918,2]
[337536222,1725779438471,-500.0,0.00021918,2]
[337536223,1725779438481,-500.0,0.00021918,2]
[337536224,1725779438491,-500.0,0.00021918,2]
[337536225,1725779438500,-500.0,0.00021918,2]
[337536226,1725779438510,-500.0,0.00021918,2]
[337536227,1725779438519,-500.0,0.00021918,2]
[337536228,1725779438530,-500.0,0.00021918,2]
[337536229,1725779438539,-500.0,0.00021918,2]
[337536230,1725779438548,-500.0,0.00021918,2]
[337536231,1725779438558,-500.0,0.00021918,2]
[337536232,1725779438567,-500.0,0.00021918,2]
[337536233,1725779438577,-500.0,0.00021918,2]
[337536234,1725779438587,-500.0,0.00021918,2]
[337536235,1725779438597,-500.0,0.00021918,2]
[337536236,1725779438606,-500.0,0.00021918,2]
[337536237,1725779438616,-285.0,0.00021918,2]
[337536238,1725779438625,-500.0,0.00021918,2]
[337536239,1725779438635,-500.0,0.00021918,2]
[337536240,1725779438644,-500.0,0.00021973,2]
[337536241,1725779438653,-398.54137713,0.00021973,2]
[337536242,1725779438665,-500.94504749,0.00021973,2]
[337536243,1725779438674,-162.489911,0.00022146,2]
[337536244,1725779438683,-1000.0,0.0002288,2]
[337536245,1725779438693,-2211.58799496,0.0002289,2]
[337536246,1725779438702,-11997.31319367,0.000229,2]
[337536247,1725779438712,-11997.31319367,0.000229,2]
[337536248,1725779438721,-163.78,0.0002295,3]
[337536249,1725779438731,-491.37,0.0002295,3]
[337536250,1725779438740,-197.71640523,0.00022959,2]
[337536251,1725779438750,-277.41000122,0.00022959,2]
[337536252,1725779438759,-500.0,0.00022959,2]
[337536253,1725779438769,-500.0,0.00022959,2]
[337536254,1725779438778,-218.30110728,0.00022959,2]
[337536255,1725779438791,-327.56,0.0002296,3]
[337536256,1725779438800,-428.69433141,0.0002296,3]
[337536257,1725779438812,-2316.34030993,0.0002296,3]
[337536258,1725779438823,-787.26782836,0.0002296,3]
[337536259,1725779438834,-30352.76530713,0.0002296,3]
[337536260,1725779438850,-17667.77027035,0.0002296,3]
[337536261,1725779438863,-206932.48008582,0.0002296,3]
[337536262,1725779438872,-6699.49864934,0.0002297,3]
[337536269,1725779440351,-14684.51109009,0.0002297,3]
[337536273,1725779443909,-53468.60580977,0.0002297,3]
[337536274,1725779443919,-159.25,0.00022973,2]
[337536275,1725779443929,-199.18914341,0.00022973,2]
[337536276,1725779443938,-500.0,0.00022973,2]
[337536277,1725779443947,-500.0,0.00022973,2]
[337536278,1725779443956,-501.27336385,0.00022973,2]
[337536279,1725779443966,-250.0,0.00022973,2]
[337536280,1725779443975,-160.33727554,0.00022973,2]
[337536281,1725779443984,-500.0,0.00022973,2]
[337536283,1725779444138,-45100.88234493,0.0002298,3]
[337536284,1725779444154,-40285.14886578,0.0002298,3]
[337536285,1725779444307,-29540.73591855,0.0002298,3]
[337536286,1725779444319,-544.27579352,0.0002298,3]
[337536287,1725779444331,-927.73458844,0.0002298,3]
[337536288,1725779444344,-465.41392555,0.0002298,3]
[337536311,1725780054162,332.0,0.00028,120]
[337536331,1725780474530,15956.338753,0.0002,2]
[337536333,1725780485022,212.6209146,0.000279,120]
[337536335,1725780499842,16492.58302967,0.0002,2]
[337536336,1725780511594,17446.05740007,0.00019,2]
[337536337,1725780520655,11538.21953576,0.00020377,2]
[337536338,1725780521714,47416.37090944,0.0002,2]
[337536339,1725780522341,10000.0,0.0001999,2]
[337536366,1725780632410,-304.84938185,0.00020373,2]
[337536415,1725780638553,-196.09566564,0.00020373,2]
[337536417,1725780638564,-501.61811395,0.00020373,2]
[337536419,1725780638574,-500.0,0.00020373,2]
[337536421,1725780638585,-300.0,0.00020376,2]
[337536423,1725780638594,-300.0,0.00020376,2]
[337536426,1725780638604,-500.0,0.00020376,2]
[337536428,1725780638613,-500.0,0.00020376,2]
[337536430,1725780638623,-500.0,0.00020376,2]
[337536432,1725780638633,-500.0,0.00020376,2]
[337536434,1725780638643,-500.0,0.00020376,2]
[337536436,1725780638656,-500.0,0.00020376,2]
[337536438,1725780638667,-500.0,0.00020376,2]
[337536440,1725780638676,-500.0,0.00020376,2]
[337536442,1725780638686,-500.0,0.00020376,2]
[337536444,1725780638696,-500.0,0.00020376,2]
[337536446,1725780638706,-595.77252756,0.00020376,2]
[337536448,1725780638716,-500.0,0.00020376,2]
[337536450,1725780638726,-500.0,0.00020376,2]
[337536452,1725780638736,-500.0,0.00020376,2]
[337536454,1725780638746,-500.0,0.00020376,2]
[337536456,1725780638755,-500.0,0.00020376,2]
[337536458,1725780638764,-500.0,0.00020376,2]
[337536460,1725780638774,-500.0,0.00020376,2]
[337536462,1725780638784,-500.0,0.00020376,2]
[337536464,1725780638792,-500.0,0.00020376,2]
[337536465,1725780638802,-500.0,0.00020376,2]
[337536467,1725780638812,-500.0,0.00020376,2]
[337536469,1725780638821,-500.0,0.00020376,2]
[337536472,1725780638831,-500.0,0.00020376,2]
[337536474,1725780638841,-500.0,0.00020376,2]
[337536476,1725780638850,-500.0,0.00020376,2]
[337536477,1725780638859,-500.0,0.00020376,2]
[337536480,1725780638869,-500.0,0.00020376,2]
[337536482,1725780638880,-500.0,0.00020376,2]
[337536484,1725780638889,-500.0,0.00020376,2]
[337536486,1725780638899,-500.0,0.00020376,2]
[337536487,1725780638910,-500.0,0.00020376,2]
[337536489,1725780638919,-500.0,0.00020376,2]
[337536491,1725780638929,-250.60576304,0.00020376,2]
[337536493,1725780638938,-500.0,0.00020376,2]
[337536495,1725780638948,-5155.99763615,0.00020377,2]
[337536497,1725780638960,-37769.30086991,0.00020377,2]
[337536499,1725780638969,-162.489911,0.00020804,2]
[337536501,1725780638979,-162.489911,0.00021346,2]
[337536503,1725780638989,-501.13917964,0.00021742,2]
[337536505,1725780638998,-162.489911,0.00021888,2]
[337536507,1725780639008,-500.0,0.00021918,2]
[337536509,1725780639017,-500.0,0.00021918,2]
[337536511,1725780639026,-500.0,0.00021918,2]
[337536513,1725780639036,-500.0,0.00021918,2]
[337536515,1725780639046,-500.0,0.00021918,2]
[337536517,1725780639055,-500.0,0.00021918,2]
[337536520,1725780639065,-500.0,0.00021918,2]
[337536522,1725780639075,-500.0,0.00021918,2]
[337536524,1725780639085,-500.0,0.00021918,2]
[337536526,1725780639097,-500.0,0.00021918,2]
[337536528,1725780639108,-500.0,0.00021918,2]
[337536530,1725780639118,-500.0,0.00021918,2]
[337536532,1725780639128,-500.0,0.00021918,2]
[337536534,1725780639139,-500.0,0.00021918,2]
[337536536,1725780639148,-500.0,0.00021918,2]
[337536538,1725780639158,-500.0,0.00021918,2]
[337536540,1725780639169,-500.0,0.00021918,2]
[337536542,1725780639180,-500.0,0.00021918,2]
[337536544,1725780639190,-500.0,0.00021918,2]
[337536546,1725780639199,-500.0,0.00021918,2]
[337536548,1725780639209,-500.0,0.00021918,2]
[337536550,1725780639218,-500.0,0.00021918,2]
[337536552,1725780639228,-500.0,0.00021918,2]
[337536554,1725780639237,-500.0,0.00021918,2]
[337536556,1725780639246,-500.0,0.00021918,2]
[337536558,1725780639255,-500.0,0.00021918,2]
[337536560,1725780639265,-500.0,0.00021918,2]
[337536562,1725780639275,-500.0,0.00021918,2]
[337536564,1725780639286,-500.0,0.00021918,2]
[337536566,1725780639295,-500.0,0.00021918,2]
[337536568,1725780639305,-439.20845275,0.00021918,2]
[337536570,1725780639317,-60.79154725,0.00021918,2]
[337536572,1725780639326,-396.27848515,0.00021918,2]
[337536574,1725780639335,-500.0,0.00021918,2]
[337536576,1725780639345,-199.0,0.00022,2]
[337536579,1725780639354,-248.0,0.00022179,2]
[337536581,1725780639366,-420.0,0.00022414,2]
[337536583,1725780639375,-8386.49107301,0.00022773,2]
[337536585,1725780639385,-500.0,0.00022873,2]
[337536587,1725780639394,-500.0,0.00022873,2]
[337536589,1725780639404,-235.47389106,0.00022873,2]
[337536591,1725780639413,-398.54137713,0.00022873,2]
[337536593,1725780639422,-162.26165823,0.00022873,2]
[337536594,1725780639430,-5000.0,0.00023,2]
[337536596,1725780639439,-306.0,0.00023,2]
[337536598,1725780639448,-317.8392579,0.00023,2]
[337536600,1725780639457,-208.2062936,0.000233,2]
[337536602,1725780639466,-306.0,0.000233,2]
[337536604,1725780639477,-150.0,0.00023548,2]
[337536606,1725780639487,-399.69,0.00023696,3]
[337536609,1725780639497,-199.84,0.00023696,3]
[337536611,1725780639508,-599.56,0.00023696,3]
[337536613,1725780639518,-3929.62301431,0.00023706,2]
[337536615,1725780639530,-8067.69017936,0.00023706,2]
[337536617,1725780639542,-1000.0,0.0002378,2]
[337536619,1725780639551,-2211.58799496,0.0002379,2]
[337536621,1725780639560,-153.0,0.00023829,2]
[337536623,1725780639570,-153.0,0.00023829,2]
[337536625,1725780639581,-153.0,0.00023829,2]
[337536627,1725780639590,-153.7912072,0.00023829,2]
[337536629,1725780639600,-153.0,0.00023829,2]
[337536632,1725780639613,-153.0,0.00023829,2]
[337536634,1725780639624,-153.0,0.00023829,2]
[337536636,1725780639636,-153.0,0.00023829,2]
[337536638,1725780639647,-153.0,0.00023829,2]
[337536640,1725780639658,-153.0,0.00023829,2]
[337536642,1725780639668,-153.0,0.00023829,2]
[337536644,1725780639678,-153.0,0.00023829,2]
[337536646,1725780639689,-153.0,0.00023829,2]
[337536648,1725780639699,-153.0,0.00023829,2]
[337536651,1725780639710,-153.0,0.00023829,2]
[337536653,1725780639720,-390.46060668,0.00023869,2]
[337536655,1725780639730,-197.71640523,0.00023869,2]
[337536657,1725780639740,-500.0,0.00023869,2]